[Event "Early-Titled-Tuesday-Blitz-January-16-2024"]
[Site "Chess.com"]
[Date "2024.01.16"]
[Round "8"]
[White "Lady_Nika"]
[Black "garfield_pg"]
[Result "1/2-1/2"]
[WhiteElo "2578"]
[BlackElo "2424"]
[TimeControl "180+1"]
[EndTime "9:32:52 PST"]
[Termination "Game drawn by repetition"]

1. d4 {[%clk 0:02:59.6]} 1... d5 {[%clk 0:02:59.4]} 2. e3 {[%clk 0:02:59.8]}
2... Nf6 {[%clk 0:02:58.5]} 3. f4 {[%clk 0:03:00]} 3... Bf5 {[%clk 0:02:57]} 4.
Nf3 {[%clk 0:03:00.9]} 4... e6 {[%clk 0:02:54.8]} 5. Bd3 {[%clk 0:03:01.2]} 5...
c5 {[%clk 0:02:48.3]} 6. c3 {[%clk 0:03:00]} 6... Nc6 {[%clk 0:02:48.5]} 7. O-O
{[%clk 0:02:59.5]} 7... Bd6 {[%clk 0:02:43.8]} 8. Ne5 {[%clk 0:02:59.3]} 8...
O-O {[%clk 0:02:41.6]} 9. Qc2 {[%clk 0:02:58.1]} 9... Bxd3 {[%clk 0:02:39.3]}
10. Qxd3 {[%clk 0:02:58]} 10... Ne4 {[%clk 0:02:39.8]} 11. Nd2 {[%clk
0:02:57.6]} 11... f5 {[%clk 0:02:32.7]} 12. Nxc6 {[%clk 0:02:53.7]} 12... bxc6
{[%clk 0:02:31]} 13. Nxe4 {[%clk 0:02:50.4]} 13... fxe4 {[%clk 0:02:26.2]} 14.
Qe2 {[%clk 0:02:48.9]} 14... Rb8 {[%clk 0:02:10.8]} 15. b3 {[%clk 0:02:41.2]}
15... Qa5 {[%clk 0:01:41.1]} 16. Bd2 {[%clk 0:02:38.9]} 16... Qb5 {[%clk
0:01:37.7]} 17. Qg4 {[%clk 0:02:29.8]} 17... Rf5 {[%clk 0:01:34.5]} 18. Rf2
{[%clk 0:02:19.8]} 18... cxd4 {[%clk 0:01:28.6]} 19. exd4 {[%clk 0:02:11.9]}
19... c5 {[%clk 0:01:26.5]} 20. Be3 {[%clk 0:02:10.8]} 20... Qd3 {[%clk
0:01:05.6]} 21. Qh3 {[%clk 0:01:10.8]} 21... c4 {[%clk 0:00:22.1]} 22. bxc4
{[%clk 0:01:00.5]} 22... Qxc4 {[%clk 0:00:23]} 23. g4 {[%clk 0:00:51.7]} 23...
Rf7 {[%clk 0:00:20.8]} 24. Rc1 {[%clk 0:00:40]} 24... Rbf8 {[%clk 0:00:10.1]}
25. f5 {[%clk 0:00:36.7]} 25... exf5 {[%clk 0:00:09.3]} 26. gxf5 {[%clk
0:00:36.9]} 26... Qd3 {[%clk 0:00:09.4]} 27. Kh1 {[%clk 0:00:34.2]} 27... Kh8
{[%clk 0:00:08.4]} 28. a4 {[%clk 0:00:21.9]} 28... Rb7 {[%clk 0:00:08.8]} 29. f6
{[%clk 0:00:20.4]} 29... gxf6 {[%clk 0:00:08.1]} 30. Rg1 {[%clk 0:00:19.6]}
30... Rb1 {[%clk 0:00:07.9]} 31. Rg2 {[%clk 0:00:18.3]} 31... Rxg1+ {[%clk
0:00:07.6]} 32. Rxg1 {[%clk 0:00:18.1]} 32... Qc4 {[%clk 0:00:06]} 33. Qh6
{[%clk 0:00:17.2]} 33... Qc7 {[%clk 0:00:05.3]} 34. Rg2 {[%clk 0:00:09]} 34...
Qf7 {[%clk 0:00:05.6]} 35. Bf4 {[%clk 0:00:07.6]} 35... Bxf4 {[%clk 0:00:04]}
36. Qxf4 {[%clk 0:00:08.5]} 36... Rg8 {[%clk 0:00:04.3]} 37. Rxg8+ {[%clk
0:00:08.4]} 37... Kxg8 {[%clk 0:00:04.5]} 38. Qb8+ {[%clk 0:00:08.5]} 38... Kg7
{[%clk 0:00:05.1]} 39. Qg3+ {[%clk 0:00:08.4]} 39... Qg6 {[%clk 0:00:04.9]} 40.
Qc7+ {[%clk 0:00:08.3]} 40... Qf7 {[%clk 0:00:05.6]} 41. Qg3+ {[%clk 0:00:08.2]}
41... Kf8 {[%clk 0:00:05.5]} 42. Qb8+ {[%clk 0:00:07.8]} 42... Kg7 {[%clk
0:00:06]} 43. Qg3+ {[%clk 0:00:07.8]} 1/2-1/2

[Event "Early-Titled-Tuesday-Blitz-January-16-2024"]
[Site "Chess.com"]
[Date "2024.01.16"]
[Round "8"]
[White "alexrustemov"]
[Black "YurasovMat-2012"]
[Result "0-1"]
[WhiteElo "2830"]
[BlackElo "2605"]
[TimeControl "180+1"]
[EndTime "9:32:54 PST"]
[Termination "YurasovMat-2012 won on time"]

1. d4 {[%clk 0:02:55.8]} 1... d5 {[%clk 0:02:59.7]} 2. c4 {[%clk 0:02:55.6]}
2... c6 {[%clk 0:02:59.7]} 3. Nc3 {[%clk 0:02:55.9]} 3... Nf6 {[%clk 0:02:59.3]}
4. e3 {[%clk 0:02:56.3]} 4... Bf5 {[%clk 0:02:58.6]} 5. cxd5 {[%clk 0:02:55.6]}
5... cxd5 {[%clk 0:02:58.4]} 6. Qb3 {[%clk 0:02:56]} 6... Nc6 {[%clk 0:02:41.7]}
7. Qxb7 {[%clk 0:02:54.9]} 7... Bd7 {[%clk 0:02:41.3]} 8. Qb3 {[%clk 0:02:55]}
8... Rb8 {[%clk 0:02:40.9]} 9. Qd1 {[%clk 0:02:55.6]} 9... e5 {[%clk 0:02:41]}
10. Nge2 {[%clk 0:02:56.3]} 10... Bd6 {[%clk 0:02:38.7]} 11. dxe5 {[%clk
0:02:55.9]} 11... Nxe5 {[%clk 0:02:38.5]} 12. Nf4 {[%clk 0:02:56.1]} 12... O-O
{[%clk 0:02:36.2]} 13. Be2 {[%clk 0:02:56.6]} 13... Re8 {[%clk 0:02:33.4]} 14.
O-O {[%clk 0:02:56.5]} 14... Bc6 {[%clk 0:02:31.8]} 15. b3 {[%clk 0:02:53]}
15... Qa5 {[%clk 0:02:30.6]} 16. Bb2 {[%clk 0:02:51.8]} 16... Rbd8 {[%clk
0:02:30.1]} 17. a3 {[%clk 0:02:39.8]} 17... Ng6 {[%clk 0:02:24.1]} 18. Nxg6
{[%clk 0:02:35.1]} 18... hxg6 {[%clk 0:02:25]} 19. Bf3 {[%clk 0:02:28.3]} 19...
Be5 {[%clk 0:02:21.2]} 20. Qd3 {[%clk 0:02:13.9]} 20... d4 {[%clk 0:02:15.1]}
21. exd4 {[%clk 0:01:54.6]} 21... Rxd4 {[%clk 0:02:13.2]} 22. Qxd4 {[%clk
0:01:30.9]} 22... Bxd4 {[%clk 0:02:11]} 23. Bxc6 {[%clk 0:01:31.5]} 23... Rc8
{[%clk 0:02:04.6]} 24. b4 {[%clk 0:01:31.4]} 24... Qe5 {[%clk 0:01:43.2]} 25.
Rae1 {[%clk 0:01:30.1]} 25... Qb8 {[%clk 0:01:18.1]} 26. b5 {[%clk 0:01:20.4]}
26... Ng4 {[%clk 0:01:16.4]} 27. g3 {[%clk 0:01:16.9]} 27... Ne5 {[%clk
0:01:16.5]} 28. Ba1 {[%clk 0:00:59.5]} 28... Rxc6 {[%clk 0:00:44]} 29. bxc6
{[%clk 0:01:00.4]} 29... Nf3+ {[%clk 0:00:43.3]} 30. Kg2 {[%clk 0:00:58.8]}
30... Nxe1+ {[%clk 0:00:42.9]} 31. Rxe1 {[%clk 0:00:59.4]} 31... Qd6 {[%clk
0:00:40.4]} 32. Re8+ {[%clk 0:00:55.4]} 32... Kh7 {[%clk 0:00:39.7]} 33. Rc8
{[%clk 0:00:56]} 33... Qe6 {[%clk 0:00:37.5]} 34. Rc7 {[%clk 0:00:50]} 34... Bb6
{[%clk 0:00:34.1]} 35. Rd7 {[%clk 0:00:44.1]} 35... Qxc6+ {[%clk 0:00:33.9]} 36.
Rd5 {[%clk 0:00:44.7]} 36... Ba5 {[%clk 0:00:33.9]} 37. Kg1 {[%clk 0:00:20.1]}
37... Bxc3 {[%clk 0:00:33.5]} 38. Rd1 {[%clk 0:00:21]} 38... Qf3 {[%clk
0:00:31]} 39. Rf1 {[%clk 0:00:18.2]} 39... Bxa1 {[%clk 0:00:29.7]} 40. Rxa1
{[%clk 0:00:17.7]} 40... a5 {[%clk 0:00:30.4]} 41. a4 {[%clk 0:00:16.7]} 41...
Qc3 {[%clk 0:00:28.5]} 42. Rd1 {[%clk 0:00:15.9]} 42... Qc4 {[%clk 0:00:28.5]}
43. Ra1 {[%clk 0:00:14.2]} 43... g5 {[%clk 0:00:27]} 44. h3 {[%clk 0:00:13.7]}
44... f5 {[%clk 0:00:26.9]} 45. Kg2 {[%clk 0:00:11.3]} 45... f4 {[%clk
0:00:27.1]} 46. gxf4 {[%clk 0:00:08.9]} 46... gxf4 {[%clk 0:00:27.3]} 47. Ra3
{[%clk 0:00:06.4]} 47... Qe4+ {[%clk 0:00:26]} 48. Kg1 {[%clk 0:00:06.1]} 48...
f3 {[%clk 0:00:25.7]} 49. Kh2 {[%clk 0:00:04.3]} 49... Qf4+ {[%clk 0:00:25.1]}
50. Kg1 {[%clk 0:00:04]} 50... Qc1+ {[%clk 0:00:25]} 0-1

[Event "Early-Titled-Tuesday-Blitz-January-16-2024"]
[Site "Chess.com"]
[Date "2024.01.16"]
[Round "8"]
[White "LeoWin2012"]
[Black "deribas12345"]
[Result "0-1"]
[WhiteElo "2248"]
[BlackElo "2492"]
[TimeControl "180+1"]
[EndTime "9:32:54 PST"]
[Termination "deribas12345 won by checkmate"]

1. e4 {[%clk 0:02:58.6]} 1... c5 {[%clk 0:02:59]} 2. Nf3 {[%clk 0:02:57.9]} 2...
d6 {[%clk 0:02:59.4]} 3. Bb5+ {[%clk 0:02:56.1]} 3... Bd7 {[%clk 0:02:59]} 4.
Bxd7+ {[%clk 0:02:56.6]} 4... Qxd7 {[%clk 0:02:59.9]} 5. O-O {[%clk 0:02:56.9]}
5... g6 {[%clk 0:03:00.5]} 6. c3 {[%clk 0:02:57.2]} 6... Bg7 {[%clk 0:03:01]} 7.
d4 {[%clk 0:02:57.8]} 7... Nf6 {[%clk 0:03:00.9]} 8. Re1 {[%clk 0:02:57.5]} 8...
O-O {[%clk 0:03:00.1]} 9. h3 {[%clk 0:02:53.4]} 9... Nc6 {[%clk 0:02:58.9]} 10.
e5 {[%clk 0:02:53]} 10... dxe5 {[%clk 0:02:58.4]} 11. dxe5 {[%clk 0:02:53.9]}
11... Qxd1 {[%clk 0:02:57.7]} 12. Rxd1 {[%clk 0:02:54.8]} 12... Ne4 {[%clk
0:02:56.1]} 13. Re1 {[%clk 0:02:52.1]} 13... f5 {[%clk 0:02:55.1]} 14. exf6
{[%clk 0:02:50.7]} 14... Nxf6 {[%clk 0:02:55.1]} 15. Bg5 {[%clk 0:02:49.3]}
15... h6 {[%clk 0:02:53.5]} 16. Bh4 {[%clk 0:02:48]} 16... g5 {[%clk 0:02:51.4]}
17. Bg3 {[%clk 0:02:47.4]} 17... Nh5 {[%clk 0:02:49.9]} 18. Bh2 {[%clk
0:02:46.2]} 18... Nf4 {[%clk 0:02:48.2]} 19. Bxf4 {[%clk 0:02:45.9]} 19... Rxf4
{[%clk 0:02:47.6]} 20. Nbd2 {[%clk 0:02:46.3]} 20... Rd8 {[%clk 0:02:35.4]} 21.
Re6 {[%clk 0:02:30.2]} 21... Kf7 {[%clk 0:02:30.2]} 22. Rae1 {[%clk 0:02:28.9]}
22... Bf6 {[%clk 0:02:28]} 23. R6e2 {[%clk 0:02:22.8]} 23... Ra4 {[%clk
0:02:16.1]} 24. a3 {[%clk 0:02:17.7]} 24... Rd3 {[%clk 0:02:02.4]} 25. Ne4
{[%clk 0:02:16.8]} 25... b6 {[%clk 0:02:02.4]} 26. Nxf6 {[%clk 0:02:07.4]} 26...
exf6 {[%clk 0:02:02.1]} 27. Re6 {[%clk 0:02:05]} 27... Rxf3 {[%clk 0:01:55.6]}
28. gxf3 {[%clk 0:01:54.3]} 28... Ne5 {[%clk 0:01:54.9]} 29. R1xe5 {[%clk
0:01:49.4]} 29... fxe5 {[%clk 0:01:54.6]} 30. Rxe5 {[%clk 0:01:50.3]} 30... Rf4
{[%clk 0:01:37.3]} 31. Kg2 {[%clk 0:01:49.8]} 31... Rf6 {[%clk 0:01:37.4]} 32.
Rd5 {[%clk 0:01:49.1]} 32... a5 {[%clk 0:01:30.4]} 33. Rd7+ {[%clk 0:01:44]}
33... Ke6 {[%clk 0:01:29]} 34. Rd3 {[%clk 0:01:39.8]} 34... Kf5 {[%clk
0:01:20.8]} 35. Re3 {[%clk 0:01:37.9]} 35... Rd6 {[%clk 0:01:19.9]} 36. Re2
{[%clk 0:01:24.2]} 36... Rd3 {[%clk 0:01:05.1]} 37. Kg3 {[%clk 0:01:23.3]} 37...
h5 {[%clk 0:01:04.2]} 38. Kg2 {[%clk 0:01:22.9]} 38... h4 {[%clk 0:01:01.5]} 39.
Rc2 {[%clk 0:01:07.8]} 39... a4 {[%clk 0:00:58]} 40. Re2 {[%clk 0:01:06.7]}
40... Rd1 {[%clk 0:00:52.8]} 41. Re4 {[%clk 0:01:05.2]} 41... Rb1 {[%clk
0:00:50]} 42. Re2 {[%clk 0:00:50.3]} 42... b5 {[%clk 0:00:49.7]} 43. Rd2 {[%clk
0:00:48.7]} 43... Ke5 {[%clk 0:00:48.7]} 44. Re2+ {[%clk 0:00:44.1]} 44... Kd5
{[%clk 0:00:48.8]} 45. Kh2 {[%clk 0:00:38.5]} 45... Kc4 {[%clk 0:00:46.6]} 46.
Re5 {[%clk 0:00:37]} 46... Rxb2 {[%clk 0:00:44.8]} 47. Rxg5 {[%clk 0:00:36.9]}
47... Rxf2+ {[%clk 0:00:44.8]} 48. Kg1 {[%clk 0:00:37.3]} 48... Rxf3 {[%clk
0:00:44.9]} 49. Rg4+ {[%clk 0:00:37.6]} 49... Kxc3 {[%clk 0:00:45.4]} 50. Rxh4
{[%clk 0:00:38.5]} 50... b4 {[%clk 0:00:45.9]} 51. axb4 {[%clk 0:00:38.6]} 51...
cxb4 {[%clk 0:00:46.8]} 52. Rh8 {[%clk 0:00:38.5]} 52... a3 {[%clk 0:00:46.4]}
53. Rc8+ {[%clk 0:00:38.4]} 53... Kb2 {[%clk 0:00:46.1]} 54. h4 {[%clk
0:00:37.9]} 54... Rh3 {[%clk 0:00:45.5]} 55. Rc4 {[%clk 0:00:35.9]} 55... b3
{[%clk 0:00:45.8]} 56. Kg2 {[%clk 0:00:35.3]} 56... Rxh4 {[%clk 0:00:45.7]} 57.
Rxh4 {[%clk 0:00:34.9]} 57... a2 {[%clk 0:00:46.2]} 58. Ra4 {[%clk 0:00:35]}
58... a1=Q {[%clk 0:00:46.4]} 59. Rxa1 {[%clk 0:00:34.5]} 59... Kxa1 {[%clk
0:00:47.3]} 60. Kf3 {[%clk 0:00:35]} 60... b2 {[%clk 0:00:47.9]} 61. Ke2 {[%clk
0:00:35.9]} 61... b1=Q {[%clk 0:00:48.3]} 62. Kd2 {[%clk 0:00:32.8]} 62... Qb8
{[%clk 0:00:47.2]} 63. Ke3 {[%clk 0:00:33.7]} 63... Qa8 {[%clk 0:00:47.6]} 64.
Kd2 {[%clk 0:00:34.6]} 64... Qc8 {[%clk 0:00:48]} 65. Kd3 {[%clk 0:00:35.2]}
65... Kb2 {[%clk 0:00:48.7]} 66. Kd2 {[%clk 0:00:36.1]} 66... Qd7+ {[%clk
0:00:49]} 67. Ke3 {[%clk 0:00:37]} 67... Kc3 {[%clk 0:00:49.2]} 68. Ke4 {[%clk
0:00:37.9]} 68... Qe6+ {[%clk 0:00:49.6]} 69. Kf4 {[%clk 0:00:38.1]} 69... Kd3
{[%clk 0:00:49.6]} 70. Kg5 {[%clk 0:00:38.3]} 70... Qf7 {[%clk 0:00:49.7]} 71.
Kg4 {[%clk 0:00:37.9]} 71... Ke4 {[%clk 0:00:50]} 72. Kg5 {[%clk 0:00:37.9]}
72... Qg7+ {[%clk 0:00:49.9]} 73. Kh4 {[%clk 0:00:37.4]} 73... Kf4 {[%clk
0:00:50.8]} 74. Kh3 {[%clk 0:00:36.5]} 74... Qg3# {[%clk 0:00:50.5]} 0-1

[Event "Early-Titled-Tuesday-Blitz-January-16-2024"]
[Site "Chess.com"]
[Date "2024.01.16"]
[Round "8"]
[White "NewBornNow"]
[Black "artin10862"]
[Result "0-1"]
[WhiteElo "2779"]
[BlackElo "2921"]
[TimeControl "180+1"]
[EndTime "9:32:55 PST"]
[Termination "artin10862 won on time"]

1. e4 {[%clk 0:03:00.9]} 1... c5 {[%clk 0:02:59.8]} 2. Nf3 {[%clk 0:03:00.3]}
2... d6 {[%clk 0:02:58.9]} 3. Bb5+ {[%clk 0:02:59.6]} 3... Bd7 {[%clk
0:02:55.4]} 4. Bxd7+ {[%clk 0:02:59.5]} 4... Qxd7 {[%clk 0:02:56.3]} 5. c4
{[%clk 0:02:58.9]} 5... Nc6 {[%clk 0:02:54.4]} 6. Nc3 {[%clk 0:02:58.5]} 6... e5
{[%clk 0:02:53.3]} 7. O-O {[%clk 0:02:57.5]} 7... Be7 {[%clk 0:02:53.2]} 8. a3
{[%clk 0:02:57.6]} 8... Bd8 {[%clk 0:02:50.3]} 9. b4 {[%clk 0:02:56.3]} 9...
Nge7 {[%clk 0:02:46.4]} 10. d3 {[%clk 0:02:48.9]} 10... O-O {[%clk 0:02:45.6]}
11. Be3 {[%clk 0:02:44.6]} 11... Nd4 {[%clk 0:02:45.3]} 12. bxc5 {[%clk
0:02:38.5]} 12... dxc5 {[%clk 0:02:43.8]} 13. Nxe5 {[%clk 0:02:36.7]} 13... Qd6
{[%clk 0:02:35.1]} 14. Bf4 {[%clk 0:02:29.5]} 14... Bc7 {[%clk 0:02:08.4]} 15.
Ng6 {[%clk 0:02:04.3]} 15... Qxg6 {[%clk 0:02:05.1]} 16. Bxc7 {[%clk 0:02:04]}
16... Nec6 {[%clk 0:02:04]} 17. Bg3 {[%clk 0:01:52]} 17... f5 {[%clk 0:02:00.7]}
18. f4 {[%clk 0:01:47.2]} 18... b6 {[%clk 0:01:55.5]} 19. e5 {[%clk 0:01:42.4]}
19... Ne7 {[%clk 0:01:52.1]} 20. Bf2 {[%clk 0:01:38.2]} 20... Ne6 {[%clk
0:01:48.9]} 21. Qf3 {[%clk 0:01:35.1]} 21... Rad8 {[%clk 0:01:44.6]} 22. Nd5
{[%clk 0:01:33.5]} 22... Rd7 {[%clk 0:01:34.5]} 23. Rad1 {[%clk 0:01:23.8]}
23... Qf7 {[%clk 0:01:15]} 24. d4 {[%clk 0:01:12]} 24... cxd4 {[%clk 0:01:02.4]}
25. Bxd4 {[%clk 0:01:11.2]} 25... Rc8 {[%clk 0:00:54.1]} 26. Qb3 {[%clk
0:00:45]} 26... Nc6 {[%clk 0:00:43.4]} 27. Be3 {[%clk 0:00:43.7]} 27... Na5
{[%clk 0:00:42.3]} 28. Qb5 {[%clk 0:00:42.4]} 28... Kh8 {[%clk 0:00:25]} 29.
Bxb6 {[%clk 0:00:36.1]} 29... axb6 {[%clk 0:00:19.7]} 30. Nxb6 {[%clk
0:00:36.1]} 30... Rxd1 {[%clk 0:00:19.3]} 31. Rxd1 {[%clk 0:00:36]} 31... Qa7
{[%clk 0:00:19.4]} 32. Kh1 {[%clk 0:00:27.9]} 32... Rb8 {[%clk 0:00:18.1]} 33.
c5 {[%clk 0:00:27.4]} 33... Nxf4 {[%clk 0:00:13.7]} 34. Rd7 {[%clk 0:00:26.1]}
34... Nb7 {[%clk 0:00:13.7]} 35. Qc6 {[%clk 0:00:19.8]} 35... Qxa3 {[%clk
0:00:07.6]} 36. h3 {[%clk 0:00:18.6]} 36... Qc1+ {[%clk 0:00:05.1]} 37. Kh2
{[%clk 0:00:17.9]} 37... Ne2 {[%clk 0:00:05.6]} 38. Rd1 {[%clk 0:00:12.7]} 38...
Qxd1 {[%clk 0:00:04.1]} 39. Qc8+ {[%clk 0:00:11]} 39... Rxc8 {[%clk 0:00:04.1]}
0-1

[Event "Early-Titled-Tuesday-Blitz-January-16-2024"]
[Site "Chess.com"]
[Date "2024.01.16"]
[Round "8"]
[White "falzehope0"]
[Black "ritanovikova"]
[Result "1-0"]
[WhiteElo "2378"]
[BlackElo "2168"]
[TimeControl "180+1"]
[EndTime "9:32:55 PST"]
[Termination "falzehope0 won on time"]

1. d4 {[%clk 0:03:00.9]} 1... d5 {[%clk 0:02:58]} 2. e3 {[%clk 0:03:01.8]} 2...
Nd7 {[%clk 0:02:56]} 3. Bd3 {[%clk 0:03:00]} 3... e5 {[%clk 0:02:55.6]} 4. f4
{[%clk 0:02:58.4]} 4... exd4 {[%clk 0:02:53.3]} 5. exd4 {[%clk 0:02:58.4]} 5...
Ngf6 {[%clk 0:02:50.8]} 6. Nf3 {[%clk 0:02:58.3]} 6... Bd6 {[%clk 0:02:49.9]} 7.
O-O {[%clk 0:02:58.4]} 7... O-O {[%clk 0:02:50]} 8. Nbd2 {[%clk 0:02:58.8]} 8...
a5 {[%clk 0:02:48.4]} 9. Ne5 {[%clk 0:02:58.9]} 9... c6 {[%clk 0:02:41.4]} 10.
c3 {[%clk 0:02:57.5]} 10... Qc7 {[%clk 0:02:41.4]} 11. Qf3 {[%clk 0:02:55.8]}
11... Re8 {[%clk 0:02:40.9]} 12. g4 {[%clk 0:02:54.7]} 12... Nf8 {[%clk
0:02:40.6]} 13. g5 {[%clk 0:02:54.5]} 13... N6d7 {[%clk 0:02:31.3]} 14. Qh5
{[%clk 0:02:53.9]} 14... Bxe5 {[%clk 0:02:10.7]} 15. fxe5 {[%clk 0:02:48.8]}
15... g6 {[%clk 0:02:10.6]} 16. Qh6 {[%clk 0:02:46.7]} 16... Ne6 {[%clk
0:02:02.2]} 17. Rxf7 {[%clk 0:02:40.5]} 17... Kxf7 {[%clk 0:01:57.7]} 18. Qxh7+
{[%clk 0:02:38.6]} 18... Kf8 {[%clk 0:01:41.9]} 19. Bxg6 {[%clk 0:02:11.6]}
19... Nf6 {[%clk 0:01:08.1]} 20. Qh8+ {[%clk 0:01:56.6]} 20... Ng8 {[%clk
0:01:07.3]} 21. Bxe8 {[%clk 0:01:55.7]} 21... Kxe8 {[%clk 0:00:54]} 22. Qxg8+
{[%clk 0:01:54.9]} 22... Nf8 {[%clk 0:00:54.2]} 23. Nf3 {[%clk 0:01:53.2]} 23...
Qf7 {[%clk 0:00:50.9]} 24. Qxf7+ {[%clk 0:01:51]} 24... Kxf7 {[%clk 0:00:51.8]}
25. Nh4 {[%clk 0:01:50.7]} 25... Ng6 {[%clk 0:00:49.5]} 26. Ng2 {[%clk
0:01:45.2]} 26... Bf5 {[%clk 0:00:41.2]} 27. Be3 {[%clk 0:01:43.4]} 27... Be4
{[%clk 0:00:40.4]} 28. Rf1+ {[%clk 0:01:42.1]} 28... Kg7 {[%clk 0:00:40.8]} 29.
Rf6 {[%clk 0:01:37.2]} 29... Rh8 {[%clk 0:00:39.3]} 30. e6 {[%clk 0:01:26.4]}
30... Rf8 {[%clk 0:00:30.5]} 31. Rxf8 {[%clk 0:00:54.7]} 31... Kxf8 {[%clk
0:00:31.4]} 32. Nf4 {[%clk 0:00:51.5]} 32... Nxf4 {[%clk 0:00:29]} 33. Bxf4
{[%clk 0:00:51.4]} 33... Ke7 {[%clk 0:00:27.9]} 34. h4 {[%clk 0:00:45.3]} 34...
Bg6 {[%clk 0:00:26.4]} 35. Kf2 {[%clk 0:00:42.8]} 35... Kxe6 {[%clk 0:00:26.3]}
36. Kf3 {[%clk 0:00:38.2]} 36... Kf5 {[%clk 0:00:25.4]} 37. Kg3 {[%clk
0:00:35.9]} 37... a4 {[%clk 0:00:22.9]} 38. Bd6 {[%clk 0:00:33.8]} 38... Bh5
{[%clk 0:00:22.5]} 39. Bc5 {[%clk 0:00:32.2]} 39... Bd1 {[%clk 0:00:17.5]} 40.
Bb6 {[%clk 0:00:29.6]} 40... Be2 {[%clk 0:00:17.1]} 41. Bd8 {[%clk 0:00:26.4]}
41... Bd1 {[%clk 0:00:16.7]} 42. Kf2 {[%clk 0:00:26.7]} 42... Bh5 {[%clk
0:00:15.4]} 43. Ke3 {[%clk 0:00:26.6]} 43... Bg4 {[%clk 0:00:14.4]} 44. Kd3
{[%clk 0:00:26.2]} 44... Kg6 {[%clk 0:00:10.6]} 45. c4 {[%clk 0:00:24.9]} 45...
Be6 {[%clk 0:00:09.8]} 46. c5 {[%clk 0:00:24.8]} 46... Bg4 {[%clk 0:00:08.6]}
47. Kc3 {[%clk 0:00:24.8]} 47... Bd1 {[%clk 0:00:07.4]} 48. Kb4 {[%clk
0:00:24.8]} 48... Kh5 {[%clk 0:00:05.1]} 49. Ka5 {[%clk 0:00:24.2]} 49... Bg4
{[%clk 0:00:04.7]} 50. Kb6 {[%clk 0:00:24.3]} 1-0

[Event "Early-Titled-Tuesday-Blitz-January-16-2024"]
[Site "Chess.com"]
[Date "2024.01.16"]
[Round "8"]
[White "Quattroporte300"]
[Black "Louis-Paulsen-Fan"]
[Result "0-1"]
[WhiteElo "2446"]
[BlackElo "2326"]
[TimeControl "180+1"]
[EndTime "9:33:02 PST"]
[Termination "Louis-Paulsen-Fan won on time"]

1. e4 {[%clk 0:03:00.9]} 1... Nf6 {[%clk 0:02:57.7]} 2. e5 {[%clk 0:02:57.9]}
2... Nd5 {[%clk 0:02:58]} 3. c4 {[%clk 0:02:58.5]} 3... Nb6 {[%clk 0:02:58.1]}
4. d4 {[%clk 0:02:59.2]} 4... d6 {[%clk 0:02:58.2]} 5. exd6 {[%clk 0:02:58.6]}
5... cxd6 {[%clk 0:02:58.2]} 6. Nc3 {[%clk 0:02:59.2]} 6... g6 {[%clk
0:02:58.8]} 7. Be3 {[%clk 0:02:58.7]} 7... Bg7 {[%clk 0:02:59.1]} 8. Nf3 {[%clk
0:02:59.4]} 8... O-O {[%clk 0:02:59.1]} 9. Be2 {[%clk 0:02:59.1]} 9... Bg4
{[%clk 0:02:58.7]} 10. b3 {[%clk 0:02:58.1]} 10... Nc6 {[%clk 0:02:56.9]} 11.
O-O {[%clk 0:02:57.9]} 11... e5 {[%clk 0:02:56.7]} 12. d5 {[%clk 0:02:56.6]}
12... Ne7 {[%clk 0:02:56.9]} 13. h3 {[%clk 0:02:55.3]} 13... Bxf3 {[%clk
0:02:52.6]} 14. Bxf3 {[%clk 0:02:54.8]} 14... f5 {[%clk 0:02:50.7]} 15. Be2
{[%clk 0:02:30.4]} 15... Rc8 {[%clk 0:02:37.2]} 16. Rc1 {[%clk 0:02:27.7]} 16...
h6 {[%clk 0:02:25.1]} 17. f4 {[%clk 0:02:22.6]} 17... exf4 {[%clk 0:02:20.3]}
18. Bxf4 {[%clk 0:02:21.4]} 18... g5 {[%clk 0:02:20.7]} 19. Be3 {[%clk
0:02:19.9]} 19... Ng6 {[%clk 0:02:19.4]} 20. Bd3 {[%clk 0:02:11]} 20... Qd7
{[%clk 0:01:50.6]} 21. Nb5 {[%clk 0:01:53.1]} 21... Rce8 {[%clk 0:01:45.4]} 22.
Qd2 {[%clk 0:01:46.3]} 22... Nc8 {[%clk 0:01:42.1]} 23. Rce1 {[%clk 0:01:33.7]}
23... f4 {[%clk 0:01:29.9]} 24. Bd4 {[%clk 0:01:30.8]} 24... Nh4 {[%clk
0:01:22.5]} 25. Be4 {[%clk 0:00:52.4]} 25... a6 {[%clk 0:01:18.8]} 26. Bxg7
{[%clk 0:00:49.2]} 26... Qxg7 {[%clk 0:01:18.2]} 27. Nd4 {[%clk 0:00:49.3]}
27... Qf6 {[%clk 0:00:55.6]} 28. Ne6 {[%clk 0:00:45.5]} 28... Rf7 {[%clk
0:00:56.1]} 29. Kh2 {[%clk 0:00:28.7]} 29... Ne7 {[%clk 0:00:55.5]} 30. Qd4
{[%clk 0:00:25.5]} 30... Nef5 {[%clk 0:00:47.9]} 31. Qxf6 {[%clk 0:00:24.9]}
31... Rxf6 {[%clk 0:00:48.8]} 32. Bxf5 {[%clk 0:00:14.6]} 32... Nxf5 {[%clk
0:00:49.7]} 33. Rf2 {[%clk 0:00:11.1]} 33... Ng7 {[%clk 0:00:46.4]} 34. Rfe2
{[%clk 0:00:09.9]} 34... Nxe6 {[%clk 0:00:45.4]} 35. dxe6 {[%clk 0:00:10.5]}
35... Re7 {[%clk 0:00:43.9]} 36. Re4 {[%clk 0:00:10.1]} 36... Kg7 {[%clk
0:00:39.1]} 37. Kg1 {[%clk 0:00:09.9]} 37... Kg6 {[%clk 0:00:25.3]} 38. Kf2
{[%clk 0:00:09.9]} 38... Kf5 {[%clk 0:00:25.3]} 39. b4 {[%clk 0:00:10]} 39...
Rfxe6 {[%clk 0:00:24.2]} 40. Rxe6 {[%clk 0:00:10.6]} 40... Rxe6 {[%clk
0:00:25.1]} 41. Rd1 {[%clk 0:00:10.9]} 41... Re4 {[%clk 0:00:20.1]} 42. Rd5+
{[%clk 0:00:10.8]} 42... Ke6 {[%clk 0:00:19.8]} 43. Rd2 {[%clk 0:00:05.9]} 43...
Rxc4 {[%clk 0:00:19.5]} 44. a3 {[%clk 0:00:05.9]} 44... Rc3 {[%clk 0:00:19.5]}
45. Re2+ {[%clk 0:00:04.9]} 45... Kf6 {[%clk 0:00:19.5]} 46. Rd2 {[%clk
0:00:03.4]} 46... Ke6 {[%clk 0:00:19.5]} 47. Re2+ {[%clk 0:00:03.8]} 47... Kd7
{[%clk 0:00:19.9]} 48. Ra2 {[%clk 0:00:02]} 48... b5 {[%clk 0:00:19]} 49. Ke2
{[%clk 0:00:02.4]} 49... d5 {[%clk 0:00:19.2]} 50. Kd2 {[%clk 0:00:02.9]} 50...
Rg3 {[%clk 0:00:19.2]} 51. Ke1 {[%clk 0:00:03.5]} 51... f3 {[%clk 0:00:18.8]}
52. gxf3 {[%clk 0:00:02.8]} 52... Rxf3 {[%clk 0:00:19.1]} 0-1